[Event "Fagernes Chess GM-Swiss 2025"]
[Site "Fagernes"]
[Date "2025.04.15"]
[Round "3.10"]
[White "Kreken, Eivind Grunt"]
[Black "Kaasen, Tor Fredrik"]
[Result "1-0"]
[Annotator "RC"]
[ECO "B66"]
[WhiteElo "2326"]
[BlackElo "2472"]
[PlyCount "95"]
[EventDate "2025.04.12"]
[EventCountry "NOR"]
[SourceTitle "playchess.com"]
[Source "ChessBase"]
[SourceQuality "1"]
[TimeControl "40/6000+30:2400+30"]

1. e4 {[%emt 0:00:50]} c5 {[%emt 0:02:33]} 2. Nf3 {[%emt 0:00:00]} Nc6 {[%emt 0:00:23]} 3. d4 {[%emt 0:00:00]} cxd4 {[%emt 0:00:13]} 4. Nxd4 {[%emt 0:00:00]} Nf6 {[%emt 0:00:13]} 5. Nc3 {[%emt 0:00:12]} d6 {[%emt 0:00:22]} 6. Bg5 {[%emt 0:01:25]} e6 {[%emt 0:00:36]} 7. Qd3 {[%emt 0:00:33]} Nxd4 {[%emt 0:01:24]} 8. Qxd4 {[%emt 0:00:49]} a6 {[%emt 0:00:23]} 9. O-O-O {[%emt 0:01:19]} Be7 {[%emt 0:00:09]} 10. f4 {[%emt 0:03:54]} b5 {[%emt 0:00:41]} 11. Bxf6 {[%emt 0:01:26]} gxf6 {[%emt 0:00:18]} 12. Kb1 {[%emt 0:02:37]} Bb7 {[%emt 0:04:30]} 13. Be2 {[%emt 0:08:03]} Qc7 {[%emt 0:01:48]} 14. f5 {[%emt 0:21:08]} Qc5 {[%emt 0:06:22]} 15. Bh5 {[%emt 0:11:27]} Qxd4 {[%emt 0:13:29]} 16. Rxd4 {[%emt 0:00:09]} Kf8 {[%emt 0:00:21]} 17. Rf1 {[%emt 0:12:46]} Rg8 {[%emt 0:04:18]} 18. g3 {[%emt 0:05:28]} Bc6 {[%emt 0:06:30]} 19. a4 {[%emt 0:04:22]} Rb8 {[%emt 0:10:03]} 20. axb5 {[%emt 0:00:40]} axb5 {[%emt 0:00:07]} 21. b4 {[%emt 0:00:30]} Rg5 {[%emt 0:12:57]} 22. Be2 {[%emt 0:00:41]} h5 {[%emt 0:01:40]} 23. Rd3 {[%emt 0:02:02]} h4 {[%emt 0:05:30]} 24. g4 {[%emt 0:07:52]} Rg8 {[%emt 0:03:40]} 25. Kb2 {[%emt 0:01:03]} Kg7 {[%emt 0:03:38]} 26. Ra1 {[%emt 0:06:39]} Rb7 {[%emt 0:06:12]} 27. Rh3 {[%emt 0:05:52]} d5 {[%emt 0:02:22]} 28. exd5 {[%emt 0:00:24]} exd5 {[%emt 0:00:33]} 29. Ra6 {[%emt 0:01:33]} Rc8 {[%emt 0:08:13]} 30. Bf3 {[%emt 0:02:03]} Rbc7 {[%emt 0:00:19]} 31. Bxd5 {[%emt 0:02:55]} Bxd5 {[%emt 0:02:43]} 32. Nxd5 {[%emt 0:00:01]} Rxc2+ {[%emt 0:00:19]} 33. Kb3 {[%emt 0:00:18]} Bd8 {[%emt 0:02:23]} 34. Nc3 {[%emt 0:01:02]} Rc1 {[%emt 0:04:37]} 35. Rd3 {[%emt 0:02:21]} Be7 {[%emt 0:01:48]} 36. Nd5 {[%emt 0:02:39]} Rb1+ {[%emt 0:00:27]} 37. Ka2 {[%emt 0:00:11]} Re1 {[%emt 0:00:30]} 38. g5 {[%emt 0:01:52]} Bd8 {[%emt 0:02:25]} 39. gxf6+ {[%emt 0:00:25]} Kh6 {[%emt 0:00:35]} 40. Ra7 {[%emt 0:02:20]} Re2+ {[%emt 0:02:34]} 41. Kb3 {[%emt 0:01:14]} Rxh2 {[%emt 0:31:45]} 42. Rxf7 {[%emt 0:02:46]} Rf2 {[%emt 0:07:30]} 43. Ne3 {[%emt 0:11:57]} Kg5 {[%emt 0:03:50]} 44. Rf8 {[%emt 0:06:10]} h3 {[%emt 0:00:46]} 45. Rd4 {[%emt 0:05:47]} Rb2+ {[%emt 0:00:14]} 46. Kxb2 {[%emt 0:00:37]} Bxf6 {[%emt 0:00:05]} 47. Rxf6 {[%emt 0:00:24]} Kxf6 {[%emt 0:00:44]} 48. Rh4 {[%emt 0:00:05]} 1-0

[Event "Fagernes Chess GM-Swiss 2025"]
[Site "Fagernes"]
[Date "2025.04.15"]
[Round "3.11"]
[White "Bazakutsa, Svyatoslav"]
[Black "Fiskaaen, Martin Holten"]
[Result "1/2-1/2"]
[Annotator "RC"]
[ECO "D35"]
[WhiteElo "2474"]
[BlackElo "2283"]
[PlyCount "158"]
[EventDate "2025.04.12"]
[EventCountry "NOR"]
[SourceTitle "playchess.com"]
[Source "ChessBase"]
[SourceQuality "1"]
[TimeControl "40/6000+30:2400+30"]

1. d4 {[%emt 0:00:48]} Nf6 {[%emt 0:01:06]} 2. c4 {[%emt 0:00:11]} e6 {[%emt 0:00:08]} 3. Nc3 {[%emt 0:00:06]} d5 {[%emt 0:00:25]} 4. cxd5 {[%emt 0:00:27]} exd5 {[%emt 0:00:05]} 5. Bf4 {[%emt 0:00:20]} Bd6 {[%emt 0:05:32]} 6. Bxd6 {[%emt 0:00:14]} Qxd6 {[%emt 0:00:08]} 7. e3 {[%emt 0:00:07]} Bf5 {[%emt 0:06:31]} 8. Qf3 {[%emt 0:00:14]} Be6 {[%emt 0:15:31]} 9. Bd3 {[%emt 0:02:24]} Nbd7 {[%emt 0:01:23]} 10. Nge2 {[%emt 0:01:21]} O-O {[%emt 0:02:55]} 11. O-O {[%emt 0:10:47]} c6 {[%emt 0:03:22]} 12. h3 {[%emt 0:03:30]} Qe7 {[%emt 0:06:03]} 13. Qf4 {[%emt 0:07:22]} Rac8 {[%emt 0:06:02]} 14. Qh4 {[%emt 0:10:39]} Rfe8 {[%emt 0:04:33]} 15. b4 {[%emt 0:02:53]} a6 {[%emt 0:02:29]} 16. a4 {[%emt 0:04:54]} b5 {[%emt 0:03:31]} 17. Rfb1 {[%emt 0:06:52]} Nb6 {[%emt 0:02:17]} 18. Nc1 {[%emt 0:12:33]} Nc4 {[%emt 0:02:36]} 19. N3a2 {[%emt 0:03:37]} Bd7 {[%emt 0:03:40]} 20. a5 {[%emt 0:09:10]} Rcd8 {[%emt 0:07:59]} 21. Kh1 {[%emt 0:03:19]} Bc8 {[%emt 0:02:45]} 22. Nb3 {[%emt 0:00:26]} h6 {[%emt 0:01:49]} 23. Re1 {[%emt 0:01:02]} Rd6 {[%emt 0:02:00]} 24. Kg1 {[%emt 0:00:52]} Qf8 {[%emt 0:04:49]} 25. Nc5 {[%emt 0:02:24]} Nd2 {[%emt 0:01:17]} 26. f3 {[%emt 0:01:47]} Nc4 {[%emt 0:01:14]} 27. Qf2 {[%emt 0:01:05]} Nd7 {[%emt 0:03:25]} 28. e4 {[%emt 0:09:46]} dxe4 {[%emt 0:02:52]} 29. Bxc4 {[%emt 0:00:10]} e3 {[%emt 0:01:36]} 30. Rxe3 {[%emt 0:01:24]} Rxe3 {[%emt 0:01:21]} 31. Qxe3 {[%emt 0:00:01]} bxc4 {[%emt 0:00:08]} 32. Nc3 {[%emt 0:01:31]} Nf6 {[%emt 0:01:25]} 33. h4 {[%emt 0:03:02]} Qd8 {[%emt 0:00:55]} 34. Rd1 {[%emt 0:00:25]} Ne8 {[%emt 0:02:37]} 35. g3 {[%emt 0:04:21]} Rg6 {[%emt 0:04:20]} 36. Kf2 {[%emt 0:01:28]} Nd6 {[%emt 0:00:30]} 37. N3e4 {[%emt 0:00:27]} Nxe4+ {[%emt 0:01:48]} 38. Qxe4 {[%emt 0:00:13]} Rd6 {[%emt 0:01:05]} 39. Qe3 {[%emt 0:00:32]} Rd5 {[%emt 0:02:01]} 40. Qc3 {[%emt 0:01:24]} g5 {[%emt 0:05:21]} 41. hxg5 {[%emt 0:42:36]} hxg5 {[%emt 0:01:27]} 42. Qxc4 {[%emt 0:00:00]} Qf6 {[%emt 0:02:01]} 43. Qe2 {[%emt 0:00:00]} Kg7 {[%emt 0:06:22]} 44. Qe3 {[%emt 0:00:00]} Qh6 {[%emt 0:03:11]} 45. g4 {[%emt 0:00:00]} Qh2+ {[%emt 0:05:33]} 46. Ke1 {[%emt 0:00:00]} Kf8 {[%emt 0:05:53]} 47. Qf2 {[%emt 0:00:00]} Qf4 {[%emt 0:02:58]} 48. Rd2 {[%emt 0:00:00]} Rd6 {[%emt 0:02:31]} 49. Qh2 {[%emt 0:00:00]} Qe3+ {[%emt 0:01:41]} 50. Kd1 {[%emt 0:00:00]} Qxf3+ {[%emt 0:07:14]} 51. Kc2 {[%emt 0:00:00]} Rg6 {[%emt 0:02:27]} 52. Qb8 {[%emt 0:02:46]} Qxg4 {[%emt 0:00:15]} 53. Nxa6 {[%emt 0:00:15]} Qf5+ {[%emt 0:03:27]} 54. Kb2 {[%emt 0:00:13]} Rh6 {[%emt 0:00:13]} 55. Nc5 {[%emt 0:01:14]} Rh1 {[%emt 0:00:30]} 56. Nd3 {[%emt 0:03:15]} Kg7 {[%emt 0:00:57]} 57. Qe5+ {[%emt 0:03:10]} Qxe5 {[%emt 0:00:32]} 58. dxe5 {[%emt 0:00:02]} g4 {[%emt 0:00:25]} 59. Kc3 {[%emt 0:00:23]} Kg6 {[%emt 0:02:06]} 60. Nc5 {[%emt 0:01:08]} Rh3+ {[%emt 0:00:30]} 61. Kd4 {[%emt 0:00:09]} g3 {[%emt 0:00:36]} 62. a6 {[%emt 0:01:11]} Rh2 {[%emt 0:00:35]} 63. Rd3 {[%emt 0:00:02]} Rh4+ {[%emt 0:00:22]} 64. Kc3 {[%emt 0:00:01]} g2 {[%emt 0:00:15]} 65. Rg3+ {[%emt 0:01:38]} Rg4 {[%emt 0:00:07]} 66. Rxg4+ {[%emt 0:00:16]} Bxg4 {[%emt 0:00:00]} 67. a7 {[%emt 0:00:07]} g1=Q {[%emt 0:00:07]} 68. a8=Q {[%emt 0:00:03]} Qc1+ {[%emt 0:01:09]} 69. Kb3 {[%emt 0:00:29]} Qb1+ {[%emt 0:01:27]} 70. Kc3 {[%emt 0:00:07]} Qe1+ {[%emt 0:00:28]} 71. Kb3 {[%emt 0:00:49]} Bd1+ {[%emt 0:00:27]} 72. Ka3 {[%emt 0:01:19]} Qc3+ {[%emt 0:00:33]} 73. Ka2 {[%emt 0:00:01]} Qc4+ {[%emt 0:00:27]} 74. Ka3 {[%emt 0:00:14]} Qc1+ {[%emt 0:00:11]} 75. Ka2 {[%emt 0:00:02]} Qd2+ {[%emt 0:00:07]} 76. Ka3 {[%emt 0:00:09]} Qe3+ {[%emt 0:00:15]} 77. Ka2 {[%emt 0:00:10]} Qd2+ {[%emt 0:01:30]} 78. Ka3 {[%emt 0:00:03]} Qc1+ {[%emt 0:00:26]} 79. Ka2 {[%emt 0:00:08]} Qd2+ {[%emt 0:00:19]} 1/2-1/2

[Event "Fagernes Chess GM-Swiss 2025"]
[Site "Fagernes"]
[Date "2025.04.15"]
[Round "3.12"]
[White "Westrum, Kim Roger Hansen"]
[Black "Kulaots, Kaido"]
[Result "0-1"]
[Annotator "RC"]
[ECO "B52"]
[WhiteElo "2193"]
[BlackElo "2510"]
[PlyCount "72"]
[EventDate "2025.04.12"]
[EventCountry "NOR"]
[SourceTitle "playchess.com"]
[Source "ChessBase"]
[SourceQuality "1"]
[TimeControl "40/6000+30:2400+30"]

1. e4 {[%emt 0:01:05]} c5 {[%emt 0:00:28]} 2. Nf3 {[%emt 0:00:08]} d6 {[%emt 0:00:10]} 3. Bb5+ {[%emt 0:00:14]} Bd7 {[%emt 0:02:58]} 4. Bxd7+ {[%emt 0:00:14]} Nxd7 {[%emt 0:00:04]} 5. O-O {[%emt 0:00:23]} Ngf6 {[%emt 0:01:36]} 6. Re1 {[%emt 0:00:44]} Rc8 {[%emt 0:13:16]} 7. c3 {[%emt 0:02:58]} c4 {[%emt 0:02:40]} 8. b3 {[%emt 0:10:05]} e6 {[%emt 0:07:57]} 9. bxc4 {[%emt 0:12:52]} Rxc4 {[%emt 0:00:44]} 10. d3 {[%emt 0:00:07]} Rc8 {[%emt 0:01:58]} 11. c4 {[%emt 0:14:58]} Be7 {[%emt 0:00:37]} 12. Nc3 {[%emt 0:00:19]} O-O {[%emt 0:01:13]} 13. Rb1 {[%emt 0:01:49]} b6 {[%emt 0:06:45]} 14. Ba3 {[%emt 0:02:22]} Nc5 {[%emt 0:11:12]} 15. d4 {[%emt 0:03:03]} Nb7 {[%emt 0:01:34]} 16. Qd3 {[%emt 0:00:37]} Na5 {[%emt 0:11:25]} 17. Nd2 {[%emt 0:01:38]} Qd7 {[%emt 0:01:18]} 18. Rb5 {[%emt 0:14:33]} Rfd8 {[%emt 0:08:30]} 19. f4 {[%emt 0:07:30]} d5 {[%emt 0:11:21]} 20. Bxe7 dxe4 {[%emt 0:02:07]} 21. Ndxe4 {[%emt 0:07:46]} Qxe7 {[%emt 0:00:28]} 22. c5 {[%emt 0:00:13]} Nb7 {[%emt 0:17:32]} 23. cxb6 {[%emt 0:02:24]} axb6 {[%emt 0:00:03]} 24. Rxb6 {[%emt 0:01:18]} Nc5 {[%emt 0:03:40]} 25. Nxc5 {[%emt 0:11:31]} Rxc5 {[%emt 0:00:06]} 26. Qe3 {[%emt 0:00:23]} Rc4 {[%emt 0:02:02]} 27. Rd1 {[%emt 0:03:35]} Qa7 {[%emt 0:00:40]} 28. Rb3 {[%emt 0:02:29]} Ng4 {[%emt 0:00:50]} 29. Qf3 {[%emt 0:03:56]} Rcxd4 {[%emt 0:00:19]} 30. Rxd4 {[%emt 0:00:12]} Qxd4+ {[%emt 0:00:19]} 31. Kh1 {[%emt 0:00:04]} Nf2+ {[%emt 0:00:43]} 32. Kg1 {[%emt 0:00:02]} Ne4+ {[%emt 0:00:43]} 33. Kh1 {[%emt 0:00:23]} Nd2 {[%emt 0:00:54]} 34. Qg3 {[%emt 0:01:07]} Nxb3 {[%emt 0:00:10]} 35. axb3 {[%emt 0:00:05]} Qxc3 {[%emt 0:00:12]} 36. Qxc3 {[%emt 0:00:03]} Rd1+ {[%emt 0:00:04]} 0-1

[Event "Fagernes Chess GM-Swiss 2025"]
[Site "Fagernes"]
[Date "2025.04.15"]
[Round "3.13"]
[White "Gandrud, Vegar Koi"]
[Black "Rozentalis, Eduardas"]
[Result "0-1"]
[Annotator "RC"]
[ECO "E16"]
[WhiteElo "2273"]
[BlackElo "2481"]
[PlyCount "140"]
[EventDate "2025.04.12"]
[EventCountry "NOR"]
[SourceTitle "playchess.com"]
[Source "ChessBase"]
[SourceQuality "1"]
[TimeControl "40/6000+30:2400+30"]

1. d4 {[%emt 0:00:03]} Nf6 {[%emt 0:00:10]} 2. c4 {[%emt 0:00:06]} e6 {[%emt 0:00:03]} 3. Nf3 {[%emt 0:00:05]} Bb4+ {[%emt 0:00:32]} 4. Nbd2 {[%emt 0:00:08]} O-O {[%emt 0:00:46]} 5. g3 {[%emt 0:00:07]} b6 {[%emt 0:01:37]} 6. Bg2 {[%emt 0:00:07]} Bb7 {[%emt 0:00:40]} 7. O-O {[%emt 0:00:14]} Re8 {[%emt 0:00:36]} 8. a3 {[%emt 0:02:11]} Bf8 {[%emt 0:03:10]} 9. b4 {[%emt 0:07:36]} d5 {[%emt 0:12:14]} 10. c5 {[%emt 0:07:58]} a5 {[%emt 0:00:48]} 11. Rb1 {[%emt 0:01:36]} axb4 {[%emt 0:01:36]} 12. axb4 {[%emt 0:00:26]} bxc5 {[%emt 0:01:59]} 13. bxc5 {[%emt 0:04:35]} Ba6 {[%emt 0:00:31]} 14. Ne5 {[%emt 0:01:14]} Nfd7 {[%emt 0:00:53]} 15. f4 {[%emt 0:14:20]} Nxe5 {[%emt 0:03:34]} 16. fxe5 {[%emt 0:00:07]} Nc6 {[%emt 0:00:31]} 17. Nf3 {[%emt 0:01:00]} h6 {[%emt 0:02:39]} 18. Qc2 {[%emt 0:20:32]} Bc4 {[%emt 0:02:00]} 19. Bb2 {[%emt 0:02:22]} Be7 {[%emt 0:03:18]} 20. Ra1 {[%emt 0:01:49]} Rb8 {[%emt 0:01:48]} 21. Bc3 {[%emt 0:01:35]} Bg5 {[%emt 0:03:31]} 22. Nxg5 {[%emt 0:14:15]} Qxg5 {[%emt 0:00:27]} 23. Rf4 {[%emt 0:00:23]} Ra8 {[%emt 0:01:09]} 24. Rxa8 {[%emt 0:02:28]} Rxa8 {[%emt 0:01:02]} 25. Qd2 {[%emt 0:10:45]} Ra2 {[%emt 0:07:59]} 26. Bb2 {[%emt 0:00:06]} Ne7 {[%emt 0:11:07]} 27. e4 {[%emt 0:01:04]} c6 {[%emt 0:08:36]} 28. Rf2 {[%emt 0:01:06]} Qxd2 {[%emt 0:04:02]} 29. Rxd2 {[%emt 0:00:06]} dxe4 {[%emt 0:01:17]} 30. Bxe4 {[%emt 0:00:09]} Nd5 {[%emt 0:00:15]} 31. Bxd5 {[%emt 0:00:41]} Bxd5 {[%emt 0:00:42]} 32. Kf2 {[%emt 0:00:58]} Kh7 {[%emt 0:03:16]} 33. Ke3 {[%emt 0:00:44]} Kg6 {[%emt 0:00:40]} 34. Bc3 {[%emt 0:00:22]} Ra3 {[%emt 0:01:37]} 35. Kd3 {[%emt 0:00:18]} f5 {[%emt 0:00:33]} 36. exf6 {[%emt 0:02:31]} gxf6 {[%emt 0:00:10]} 37. Rf2 {[%emt 0:00:41]} h5 {[%emt 0:04:08]} 38. h4 {[%emt 0:04:21]} Ra8 {[%emt 0:01:29]} 39. Bd2 {[%emt 0:02:14]} Ra2 {[%emt 0:02:32]} 40. Be1 {[%emt 0:05:25]} Ra4 {[%emt 0:02:56]} 41. Bc3 {[%emt 0:04:11]} Bc4+ {[%emt 0:09:19]} 42. Kc2 {[%emt 0:05:08]} Ra2+ {[%emt 0:02:03]} 43. Bb2 {[%emt 0:00:08]} Bd5 {[%emt 0:00:08]} 44. Kd3 {[%emt 0:01:06]} Ra8 {[%emt 0:00:48]} 45. Bc1 {[%emt 0:02:05]} Ra1 {[%emt 0:03:05]} 46. Rc2 {[%emt 0:13:54]} Kf5 {[%emt 0:06:10]} 47. Rf2+ {[%emt 0:04:35]} Kg4 {[%emt 0:00:39]} 48. Bf4 {[%emt 0:00:25]} Ra3+ {[%emt 0:02:22]} 49. Kd2 {[%emt 0:00:16]} Bf3 {[%emt 0:02:31]} 50. Rf1 {[%emt 0:01:31]} Ra2+ {[%emt 0:01:14]} 51. Kc3 {[%emt 0:01:47]} Re2 {[%emt 0:02:16]} 52. Rg1 {[%emt 0:00:33]} e5 {[%emt 0:05:20]} 53. dxe5 {[%emt 0:00:35]} fxe5 {[%emt 0:00:08]} 54. Bd2 {[%emt 0:01:03]} Rh2 {[%emt 0:04:00]} 55. Bg5 {[%emt 0:02:17]} Ra2 {[%emt 0:01:54]} 56. Re1 {[%emt 0:00:31]} e4 {[%emt 0:00:41]} 57. Bf4 {[%emt 0:00:27]} Ra3+ {[%emt 0:00:06]} 58. Kc4 {[%emt 0:01:08]} Kh3 {[%emt 0:01:37]} 59. Re3 {[%emt 0:00:33]} Ra4+ {[%emt 0:00:28]} 60. Kb3 {[%emt 0:02:23]} Rd4 {[%emt 0:01:40]} 61. Kc3 {[%emt 0:00:51]} Rd5 {[%emt 0:00:28]} 62. Kc4 {[%emt 0:02:56]} Kg2 {[%emt 0:00:22]} 63. Rc3 {[%emt 0:03:57]} Kf2 {[%emt 0:04:03]} 64. Kb3 {[%emt 0:00:10]} Rf5 {[%emt 0:08:05]} 65. Rc2+ {[%emt 0:00:23]} Be2 {[%emt 0:00:49]} 66. Rc3 {[%emt 0:00:46]} Bd3 {[%emt 0:00:36]} 67. Kb2 {[%emt 0:01:29]} Rd5 {[%emt 0:00:26]} 68. Rc1 {[%emt 0:01:19]} e3 {[%emt 0:01:25]} 69. Kb3 {[%emt 0:01:01]} Bf5 {[%emt 0:02:25]} 70. Kc3 {[%emt 0:00:40]} e2 {[%emt 0:01:54]} 0-1

[Event "Fagernes Chess GM-Swiss 2025"]
[Site "Fagernes"]
[Date "2025.04.15"]
[Round "3.14"]
[White "Southcott-Moyers, Indy"]
[Black "Blomqvist, Erik"]
[Result "1/2-1/2"]
[Annotator "TA"]
[ECO "D02"]
[WhiteElo "2227"]
[BlackElo "2475"]
[PlyCount "89"]
[EventDate "2025.04.12"]
[EventCountry "NOR"]
[SourceTitle "playchess.com"]
[Source "ChessBase"]
[SourceQuality "1"]
[TimeControl "40/6000+30:2400+30"]

{[%evp 9,89,0,29,26,29,30,36,23,60,58,63,55,67,55,44,45,58,0,0,0,0,0,40,0,1,0,2,-63,47,15,72,58,58,58,75,71,75,72,64,-23,-16,-22,-31,-12,-14,-15,0,0,0,-35,-6,-6,-6,-1,-3,-15,181,0,0,0,0,0,0,0,0,0,0,0,303,0,0,0,67,69,78,0,18,0,79,0,25,0]} 1. d4 {[%emt 0:00:02]} Nf6 {[%emt 0:01:17]} 2. Nf3 {[%emt 0:00:06]} d5 {[%emt 0:00:07]} 3. Bf4 {[%emt 0:00:05]} c5 {[%emt 0:02:54]} 4. e3 {[%emt 0:00:05]} Nc6 {[%emt 0:00:09]} 5. Nbd2 {[%emt 0:00:06]} Nh5 {[%emt 0:00:42]} 6. dxc5 {[%emt 0:00:13] D02: 1 d4 d5 2 Nf3 sidelines, including 2...Nf6 3 g3 and 2...Nf6 3 Bf4.} Nxf4 {[%emt 0:00:49]} 7. exf4 {[%emt 0:00:07]} Qa5 {[%emt 0:00:25]} 8. c4 {[%emt 0:01:13] White is slightly better.} d4 {[%emt 0:06:22]} 9. a3 {[%emt 0:11:01]} Qxc5 {[%emt 0:00:22]} 10. Bd3 {[%emt 0:00:54] Wards off Qf5} g6 $146 {[%emt 0:01:21]} (10... Qd6 11. g3 g6 12. O-O Bg7 13. b4 O-O 14. c5 Qc7 15. b5 Nd8 16. Rc1 Bg4 {0-1 Demchenko,A (2641)-Jonkman,H (2385) World op 48th 2020 (2)}) 11. O-O {[%emt 0:03:45]} Bh6 {[%emt 0:00:46]} 12. g3 {[%emt 0:03:57]} O-O {[%emt 0:00:38]} 13. Ne4 {[%emt 0:14:18]} (13. b4 $14 Qh5 14. Re1) 13... Qh5 $11 {[%emt 0:05:02]} 14. Be2 {[%emt 0:06:10][%cal Of3g5]} Qf5 {[%emt 0:02:47]} 15. Bd3 {[%emt 0:07:16]} Qh3 {[%emt 0:06:21]} 16. Nfg5 {[%emt 0:04:52]} Qd7 {[%emt 0:02:38]} 17. Re1 {[%emt 0:00:46]} Qc7 {[%emt 0:01:32]} 18. b4 {[%emt 0:05:21]} (18. Nf3 $11) 18... Bg7 {[%emt 0:04:20]} (18... f5 $1 $15 19. Nc5 Bxg5 20. fxg5 e5) 19. Kg2 {[%emt 0:08:36]} b6 {[%emt 0:03:16]} (19... e5 $11 {keeps the balance.}) 20. c5 $16 {[%emt 0:01:27]} e5 {[%emt 0:14:46]} 21. Nd6 {[%emt 0:06:47] Excellent horsemanship.} bxc5 {[%emt 0:01:41]} 22. bxc5 {[%emt 0:00:10][%csl Oc5] White has a strong passed pawn} exf4 {[%emt 0:03:45][%csl Oa7,Od4] Black has weak pawns} 23. Ngxf7 $1 {[%emt 0:06:38][%csl Od6] Strong Square White (d6) White is much more active. The black rooks are passive.} Rxf7 {[%emt 0:01:54]} 24. Re8+ {[%emt 0:00:18]} ({Better is} 24. Bc4 $1 $14 Ne5 (24... f3+ $2 25. Qxf3 $18) 25. Rxe5 (25. Bxf7+ $2 Nxf7 26. Re8+ Bf8 $19) 25... Bb7+ 26. Kg1 Bxe5 27. Nxf7) 24... Bf8 $1 $11 {[%emt 0:06:17][%cal Oc8h3]} (24... Rf8 25. Qb3+ (25. Bc4+ Kh8 $11) 25... Kh8 26. Nf7+ $18) 25. Bc4 {[%emt 0:07:42] [#] Chess con chili.} Kg7 {[%emt 0:01:14][%cal Of8d6]} 26. Rxc8 {[%emt 0:08:31]} (26. Bxf7 Bxd6 27. Bd5 Bf8 $17 (27... Bxc5 28. Rc1 $17)) 26... Rxc8 {[%emt 0:00:25]} 27. Nxf7 {[%emt 0:00:22]} Be7 {[%emt 0:06:14] Against Ng5} 28. Qf3 {[%emt 0:02:40]} Rf8 {[%emt 0:07:14]} 29. Qd5 {[%emt 0:01:38]} (29. Qxf4 $2 Qxf4 30. gxf4 Rxf7 31. Bxf7 Kxf7 $19) 29... f3+ {[%emt 0:03:35]} 30. Kg1 {[%emt 0:00:19][%cal Of7d6]} (30. Kxf3 $2 Ne5+ 31. Kg2 Nxc4 (31... Nxf7 $2 32. c6 $19) 32. Qxd4+ Bf6 (32... Kxf7 $2 33. Qxc4+ Kg7 34. c6 $19) 33. Qxc4 Bxa1 $19) 30... Na5 $1 {[%emt 0:02:06] ...Nxc4 is the strong threat.} 31. Ba2 $132 {[%emt 0:02:28][%mdl 2048] White has counterplay} (31. Qxd4+ $2 Bf6 32. Qd5 Qxf7 (32... Bxa1 $2 33. Ng5 $19) 33. Qxf7+ Rxf7 34. Bxf7 Bxa1 $19) 31... Qxc5 {[%emt 0:00:57]} 32. Qe6 {[%emt 0:05:15]} (32. Qxf3 Qc3 (32... Qxa3 33. Qxa3 Bxa3 34. Ng5 $17) 33. Qd1 d3 $19 (33... Rxf7 34. Rc1 $11)) 32... Rc8 $2 {[%emt 0:17:44]} (32... Nc6 $11 33. h4 Nd8 34. Nxd8 Bxd8) 33. Rf1 $2 {[%emt 0:00:24]} (33. h4 $18 {[%cal Oh4h5]} Rc6 34. Ng5 Bxg5 35. Qf7+ Kh6 36. hxg5+ Qxg5 37. Qf8+ (37. Qxf3 Rf6 $11) 37... Kh5 38. Qxf3+ Kh6 39. Qf8+ Kh5 40. Kg2) 33... Rc6 {[%emt 0:00:39]} 34. Nd8 {[%emt 0:01:31]} Bxd8 {[%emt 0:00:39]} 35. Qg8+ {[%emt 0:00:20]} Kh6 {[%emt 0:00:04]} 36. Qxd8 {[%emt 0:00:05]} Rc8 {[%emt 0:04:49]} 37. Qd7 {[%emt 0:01:18]} Rc7 {[%emt 0:01:53]} 38. Qg4 {[%emt 0:00:34]} (38. Qd8 Nb7 39. Qf6 Qd6 40. Qxf3 d3) 38... Nc4 $2 {[%emt 0:01:12][%mdl 8192]} (38... Kg7 $11 {and Black is okay.}) 39. Bxc4 $2 {[%emt 0:01:12]} ({Stronger than} 39. Qxf3 Ne5 40. Qf6 d3 $11 (40... Qxa3 $2 {loses.} 41. Qf4+ g5 42. Qxe5 $18)) (39. Rc1 $1 $18 {[%cal Rc1c4]} Qe7 40. Qh3+ (40. Bxc4 Rxc4 41. Qh3+ Kg7 $16) (40. Qxd4 Ne5 $16) 40... Kg7 41. Rxc4 (41. Bxc4 Rxc4 42. Rxc4 d3 $18)) 39... Qxc4 {[%emt 0:00:08]} 40. Qxf3 $18 {[%emt 0:00:09] KQR-KQR} d3 {[%emt 0:00:48]} (40... Kg7 $11) 41. Qf8+ $14 {[%emt 0:04:27]} Kh5 {[%emt 0:02:33] [#]} 42. Qf3+ {[%emt 0:00:18]} (42. Re1 $1 $16 {[%cal Re1e5]} Qd4 43. Qf3+ Kh6 44. Re4) 42... Kh6 $1 $11 {[%emt 0:00:19]} 43. Qf8+ {[%emt 0:02:53]} (43. Rd1 $11) 43... Kh5 $1 $16 {[%emt 0:00:07] [#]} 44. Qf3+ {[%emt 0:16:48]} (44. Re1 $1 $16 {[%cal Re1e5] Re5+ would now be deadly.} Qd4 45. Rd1) 44... Kh6 $1 $11 {[%emt 0:00:06]} 45. Qf8+ {[%emt 0:00:05] Weighted Error Value: White=0.32/Black=0.28 (precise)   Loses game:     	---       	Black=2      Missed win:     	White=2     	---        Mistake:       	White=6     	Black=3      Inaccurate:     	White=3     	Black=3      OK:         	White=16    	Black=13     Best:        	White=2     	Black=2      Strong:       	White=1     	Black=5} 1/2-1/2

[Event "Fagernes Chess GM-Swiss 2025"]
[Site "Fagernes"]
[Date "2025.04.15"]
[Round "3.15"]
[White "Hillarp Persson, Tiger"]
[Black "Hedman, Erik"]
[Result "1-0"]
[Annotator "RC"]
[ECO "A34"]
[WhiteElo "2462"]
[BlackElo "2276"]
[PlyCount "87"]
[EventDate "2025.04.12"]
[EventCountry "NOR"]
[SourceTitle "playchess.com"]
[Source "ChessBase"]
[SourceQuality "1"]
[TimeControl "40/6000+30:2400+30"]

1. Nf3 {[%emt 0:02:47]} Nf6 {[%emt 0:00:18]} 2. g3 {[%emt 0:00:12]} c5 {[%emt 0:00:17]} 3. Bg2 {[%emt 0:00:14]} Nc6 {[%emt 0:00:07]} 4. O-O {[%emt 0:00:29]} e5 {[%emt 0:00:13]} 5. c4 {[%emt 0:00:18]} d5 {[%emt 0:00:13]} 6. cxd5 {[%emt 0:00:18]} Nxd5 {[%emt 0:00:06]} 7. Nc3 {[%emt 0:00:06]} Nc7 {[%emt 0:00:12]} 8. d3 {[%emt 0:02:46]} Be7 {[%emt 0:00:15]} 9. Nd2 {[%emt 0:00:20]} Bd7 {[%emt 0:00:11]} 10. Nc4 {[%emt 0:00:11]} f6 {[%emt 0:00:13]} 11. a4 {[%emt 0:04:52]} O-O {[%emt 0:01:00]} 12. a5 {[%emt 0:02:24]} Kh8 {[%emt 0:02:43]} 13. Kh1 {[%emt 0:00:43]} Qe8 {[%emt 0:12:47]} 14. f4 {[%emt 0:10:03]} Qh5 {[%emt 0:07:44]} 15. Bf3 {[%emt 0:20:15]} Bg4 {[%emt 0:07:03]} 16. Bxg4 {[%emt 0:01:33]} Qxg4 {[%emt 0:00:05]} 17. f5 {[%emt 0:00:37]} Nd4 {[%emt 0:08:42]} 18. Ne3 {[%emt 0:01:23]} Qh3 {[%emt 0:00:21]} 19. Ne4 {[%emt 0:01:53]} Rfd8 {[%emt 0:01:48]} 20. g4 {[%emt 0:03:00]} Nd5 {[%emt 0:03:58]} 21. Nxd5 {[%emt 0:03:13]} Rxd5 {[%emt 0:00:03]} 22. Rg1 {[%emt 0:00:49]} c4 {[%emt 0:09:19]} 23. Rg3 {[%emt 0:01:22]} Qh4 {[%emt 0:00:59]} 24. Be3 {[%emt 0:09:01]} h5 {[%emt 0:11:50]} 25. dxc4 {[%emt 0:10:21]} Rdd8 {[%emt 0:03:36]} 26. Bxd4 {[%emt 0:01:34]} Rxd4 {[%emt 0:00:09]} 27. Qc2 {[%emt 0:00:24]} hxg4 {[%emt 0:02:46]} 28. e3 {[%emt 0:05:33]} Rd7 {[%emt 0:00:12]} 29. Rag1 {[%emt 0:08:44]} g5 {[%emt 0:05:23]} 30. Rxg4 {[%emt 0:05:54]} Qh3 {[%emt 0:00:26]} 31. R4g3 {[%emt 0:01:46]} Qh5 {[%emt 0:05:06]} 32. Qg2 {[%emt 0:07:17]} Kg7 {[%emt 0:01:23]} 33. Rh3 {[%emt 0:00:25]} Qf7 {[%emt 0:00:15]} 34. Qf3 {[%emt 0:03:18]} Rc8 {[%emt 0:04:19]} 35. b3 {[%emt 0:00:31]} Rd3 {[%emt 0:05:41]} 36. Rh5 {[%emt 0:00:39]} Rxe3 {[%emt 0:05:03]} 37. Rhxg5+ {[%emt 0:00:07]} fxg5 {[%emt 0:00:07]} 38. Qxe3 {[%emt 0:00:11]} Qxf5 {[%emt 0:00:04]} 39. Nxg5 {[%emt 0:00:31]} Kf8 {[%emt 0:05:05]} 40. Ne4 {[%emt 0:02:29]} Ke8 {[%emt 0:01:59]} 41. Qd3 {[%emt 0:17:49]} Qf7 {[%emt 0:02:10]} 42. Qh3 {[%emt 0:06:57]} Rc6 {[%emt 0:07:58]} 43. Rf1 {[%emt 0:01:33]} Qg7 {[%emt 0:01:01]} 44. Rd1 {[%emt 0:07:31]} 1-0